bitfinex/quotes_BTCUSD_20260308
["timestamp","ask_amount","ask_price","bid_price","bid_amount"]
[1772971969385,0.22828351,67213.0,67188.0,0.07441805]
[1772971969605,0.03649581,67210.0,67192.0,0.00152]
[1772971969766,0.03649581,67208.0,67192.0,0.00152]
[1772971969968,0.11089282,67207.0,67192.0,0.07593325]
[1772971970176,0.11089282,67207.0,67193.0,0.00152]
[1772971970568,0.07439701,67207.0,67192.0,0.07441325]
[1772971970955,0.03649581,67206.0,67193.0,0.00152]
[1772971971528,0.07439667,67210.0,67190.0,0.07441527]
[1772971971529,0.17507009,67236.0,67190.0,0.07441532]
[1772971971730,0.03649581,67237.0,67203.0,0.00525474]
[1772971971900,0.03649581,67234.0,67207.0,0.22860222]
[1772971972086,0.03649581,67232.0,67207.0,0.22860222]
[1772971972286,0.26477932,67231.0,67207.0,0.22860222]
[1772971972494,0.00152,67230.0,67208.0,0.22334748]
[1772971972693,0.22980351,67230.0,67208.0,0.22334748]
[1772971972895,0.03649581,67229.0,67208.0,0.22334748]
[1772971973097,0.00152,67230.0,67208.0,0.23080749]
[1772971974048,0.07437266,67229.0,67210.0,0.22334748]
[1772971974234,0.07437266,67229.0,67212.0,0.22334748]
[1772971975141,0.00152,67228.0,67212.0,0.22334748]
[1772971975467,0.07437266,67229.0,67213.0,0.22334748]
[1772971975756,0.07589266,67229.0,67213.0,0.22334748]
[1772971976322,0.07589266,67229.0,67214.0,0.29773674]
[1772971979483,0.07589266,67229.0,67214.0,0.07438926]
[1772971979649,0.03649581,67228.0,67214.0,0.07438926]
[1772971980248,0.22828351,67227.0,67214.0,0.07438926]
[1772971980469,0.03649581,67226.0,67214.0,0.07438926]
[1772971980863,0.03649581,67225.0,67214.0,0.07438926]
[1772971981315,0.03649581,67225.0,67207.0,0.22334748]
[1772971981316,0.22828351,67224.0,67193.0,0.22334748]
[1772971981540,0.03649581,67218.0,67200.0,0.07500413]
[1772971981764,0.03649581,67214.0,67200.0,0.0006]
[1772971981981,0.22828351,67211.0,67200.0,0.0006]
[1772971982207,0.03801581,67210.0,67200.0,0.07500443]
[1772971982335,0.03649581,67207.0,67186.0,0.00152]
[1772971982580,0.03649581,67207.0,67157.0,0.35736763]
[1772971982581,0.03649581,67203.0,67187.0,1e-08]
[1772971982749,0.03649581,67203.0,67172.0,0.36516361]
[1772971982750,0.03649581,67198.0,67175.0,0.07483205]
[1772971982949,0.24041194,67195.0,67175.0,0.07483205]
[1772971983158,0.00152,67194.0,67176.0,0.23530211]
[1772971983558,0.07441251,67193.0,67177.0,0.07443023]
[1772971983819,0.00152,67192.0,67177.0,0.07443023]
[1772971984513,0.00152,67191.0,67177.0,0.07443023]
[1772971984896,0.03380691,67191.0,67177.0,0.07443023]
[1772971985559,0.03380691,67191.0,67176.0,0.07443023]
[1772971985560,0.07441583,67190.0,67176.0,0.07443023]
[1772971985760,0.03228691,67188.0,67176.0,0.07443023]
[1772971987007,0.03213691,67188.0,67176.0,0.07443023]
[1772971987635,0.07441915,67187.0,67175.0,0.0748318]
[1772971987815,0.07441915,67188.0,67175.0,0.0748318]
[1772971987816,0.03221191,67186.0,67175.0,0.0748318]
[1772971988370,0.07441805,67190.0,67175.0,0.0748318]
[1772971988371,0.07453214,67193.0,67176.0,0.22612806]
[1772971988570,0.00152,67192.0,67176.0,0.22612806]
[1772971988984,0.03373191,67192.0,67177.0,0.00152]
[1772971989426,0.03373191,67192.0,67175.0,0.0750318]
[1772971989595,0.10662663,67191.0,67177.0,0.07443023]
[1772971990415,0.03221191,67190.0,67177.0,0.07443023]
[1772971990797,0.03373191,67189.0,67177.0,0.07443023]
[1772971991603,0.10662996,67188.0,67177.0,0.07443023]
[1772971991808,0.07441805,67188.0,67177.0,0.07443023]
[1772971992433,0.07441484,67191.0,67177.0,0.07443023]
[1772971992640,0.10662675,67191.0,67177.0,0.07443023]
[1772971992851,0.00152,67190.0,67177.0,0.07443023]
[1772971993181,0.00152,67190.0,67176.0,0.07443023]
[1772971993384,0.0036,67177.0,67168.0,0.07443923]
[1772971993596,0.0036,67177.0,67157.0,0.00080186]
[1772971993597,0.0036,67177.0,67146.0,0.22171355]
[1772971993771,0.23968037,67172.0,67140.0,0.07447111]
[1772971993924,0.03213541,67169.0,67142.0,0.22612806]
[1772971994123,0.07483245,67175.0,67142.0,0.22612806]
[1772971994124,0.23968037,67167.0,67142.0,0.22612806]
[1772971994325,0.03213541,67166.0,67142.0,0.22612806]
[1772971994526,0.00152,67165.0,67144.0,0.22612806]
[1772971994731,0.00152,67165.0,67156.0,0.001]
[1772971994931,0.00152,67164.0,67156.0,0.001]
[1772971995378,0.0016395,67165.0,67156.0,0.001]
[1772971995769,0.10658005,67164.0,67156.0,0.001]
[1772971995979,0.10658005,67164.0,67146.0,0.07446424]
[1772971995980,0.10658005,67164.0,67147.0,0.22612806]
[1772971996181,0.10658005,67164.0,67156.0,0.001]
[1772971996378,0.00152,67165.0,67150.0,0.00057822]
[1772971996599,0.07443437,67174.0,67151.0,0.22764806]
[1772971996824,0.00152,67173.0,67151.0,0.22804656]
[1772971997025,0.03213541,67172.0,67151.0,0.22804656]
[1772971997325,0.03213541,67172.0,67151.0,0.22652656]
[1772971997533,0.03213541,67172.0,67152.0,0.22612806]
[1772971997534,0.03198242,67172.0,67152.0,0.22612806]
[1772971997679,0.03198242,67172.0,67151.0,0.0003985]
[1772971997680,0.23968037,67168.0,67151.0,0.0003985]
[1772971998063,0.0744391,67169.0,67105.0,0.00771884]
[1772971998064,0.23968037,67161.0,67105.0,0.00771884]
[1772971998252,0.17794,67146.0,67108.0,0.22612806]
[1772971998397,0.23968037,67141.0,67106.0,0.08025829]
[1772971998603,0.23968037,67136.0,67107.0,0.22612806]
[1772971998802,0.03205891,67133.0,67107.0,0.22612806]
[1772971999151,0.03205891,67132.0,67107.0,0.22760806]
[1772971999327,0.23968037,67129.0,67107.0,0.00148]
[1772971999532,0.28452784,67147.0,67107.0,0.00148]
[1772971999533,0.23968037,67127.0,67107.0,0.00148]
[1772971999729,0.00039875,67127.0,67110.0,0.22612806]
[1772971999903,0.00152,67126.0,67110.0,0.22612806]
[1772972000104,0.00039875,67127.0,67110.0,0.22462806]
[1772972000353,0.00152,67128.0,67110.0,0.00026036]
[1772972000528,0.03205891,67136.0,67111.0,0.22612806]
[1772972000957,0.03205891,67133.0,67110.0,0.00039875]
[1772972001109,0.23968037,67130.0,67110.0,0.00039875]
[1772972001309,0.03205891,67127.0,67110.0,0.00039875]
[1772972001549,0.03205891,67125.0,67110.0,0.00039875]
[1772972001751,0.07449011,67123.0,67111.0,0.07450343]
[1772972002060,0.07449011,67123.0,67110.0,0.07590323]
[1772972002241,0.27173928,67123.0,67110.0,0.07590323]
[1772972002434,0.00152,67122.0,67110.0,0.07590323]
[1772972002700,0.00152,67122.0,67102.0,0.07451245]
[1772972002701,0.03205891,67119.0,67100.0,10.05538689]
[1772972002870,0.00152,67118.0,67101.0,0.22612806]
[1772972003232,0.07447786,67135.0,67101.0,0.22612806]
[1772972003440,0.03801124,67145.0,67103.0,0.22612806]
[1772972003441,0.00152,67131.0,67103.0,0.22612806]
[1772972003919,0.00152,67131.0,67100.0,10.05538689]
[1772972003920,0.03205891,67128.0,67100.0,9.9818718]
[1772972004092,1.157468,67123.0,67100.0,9.9818718]
[1772972004274,0.00039875,67128.0,67100.0,9.9818718]
[1772972004275,0.23968037,67120.0,67100.0,9.9818718]
[1772972004474,0.03205891,67117.0,67100.0,9.9818718]
[1772972004673,0.03357891,67117.0,67100.0,10.0563869]
[1772972004866,0.23968037,67116.0,67100.0,10.0563869]
[1772972005119,0.23968037,67114.0,67101.0,0.07451453]
[1772972005289,0.23968037,67114.0,67100.0,10.05638673]
[1772972005490,0.03205891,67111.0,67100.0,10.05638665]
[1772972005696,0.07450055,67114.0,67100.0,10.05538665]
[1772972005915,0.07601051,67123.0,67101.0,0.22612806]
[1772972006115,0.10806942,67123.0,67103.0,0.22612806]
[1772972006294,0.10806942,67123.0,67100.0,10.05538665]
[1772972006295,0.03205891,67121.0,67100.0,9.9810718]
[1772972006497,0.23968037,67118.0,67100.0,9.9810718]
[1772972006822,0.23968037,67112.0,67100.0,9.3688431]
[1772972007116,0.07601051,67123.0,67100.0,9.3688431]
[1772972007117,0.03205891,67113.0,67100.0,9.3703631]
[1772972007494,0.03205891,67111.0,67100.0,9.3703631]
[1772972007737,0.27173928,67110.0,67100.0,9.3688431]
[1772972007866,0.07450565,67109.0,67101.0,0.001]
[1772972008071,0.03205891,67106.0,67100.0,9.09787004]
[1772972008316,0.03205891,67102.0,67100.0,7.21514776]
[1772972008514,0.03205891,67102.0,67100.0,4.36487589]
[1772972008725,0.03357891,67109.0,67100.0,4.35720672]
[1772972008922,0.00152,67112.0,67100.0,4.35720672]
[1772972009130,0.03042834,67111.0,67100.0,4.35720672]
[1772972009329,0.03042834,67109.0,67100.0,4.35720672]
[1772972009507,0.03042834,67107.0,67100.0,4.35720672]
[1772972009717,0.03042834,67107.0,67100.0,4.23340797]
[1772972010028,0.07550644,67109.0,67100.0,6.34640797]
[1772972010267,0.07450644,67109.0,67100.0,6.34640797]
[1772972010643,0.001,67107.0,67100.0,6.34640797]
[1772972010849,0.001,67102.0,67100.0,6.34640797]
[1772972011044,0.07450565,67111.0,67100.0,6.34640797]
[1772972011045,0.0749013,67112.0,67101.0,0.28041922]
[1772972011244,0.0003985,67112.0,67102.0,0.00152]
[1772972011448,0.03042834,67134.0,67104.0,0.28041922]
[1772972011657,0.0744671,67144.0,67108.0,0.28041922]
[1772972011830,0.03042834,67158.0,67114.0,0.27926922]
[1772972012032,0.03042834,67158.0,67113.0,0.34908653]
[1772972012033,0.07445018,67159.0,67126.0,0.03028967]
[1772972012231,0.00575,67160.0,67130.0,0.03028967]
[1772972012445,0.10487852,67159.0,67131.0,0.27918922]
[1772972012648,0.10487852,67159.0,67125.0,0.0004]
[1772972012649,0.25381,67156.0,67132.0,2.113]
[1772972012847,0.03042834,67158.0,67134.0,0.27918922]
[1772972013050,0.00152,67155.0,67136.0,0.27918922]
[1772972013232,0.03042834,67158.0,67138.0,0.27918922]
[1772972013441,0.03194834,67158.0,67138.0,0.27918922]
[1772972013844,0.07445562,67155.0,67140.0,0.27914522]
[1772972014541,0.00022001,67151.0,67140.0,0.27914522]
[1772972014741,0.07445377,67156.0,67140.0,0.27910122]
[1772972016160,0.08019985,67160.0,67140.0,0.27910122]
[1772972016161,0.07445018,67159.0,67141.0,0.07447014]
[1772972016449,0.07445018,67159.0,67139.0,2.18747236]
[1772972016649,0.07445018,67159.0,67140.0,0.27910122]
[1772972016848,0.07445018,67159.0,67140.0,0.28062122]
[1772972017045,0.03042834,67157.0,67136.0,0.0001195]
[1772972017285,0.787509,67154.0,67127.0,0.00152]
[1772972017496,0.03042834,67151.0,67128.0,0.01764539]
[1772972017663,0.03042834,67149.0,67128.0,0.01764539]
[1772972017867,0.03042834,67149.0,67129.0,0.9]
[1772972018300,0.10489072,67148.0,67128.0,0.01764539]
[1772972018508,0.10489072,67148.0,67126.0,0.07448678]
[1772972018709,0.10489072,67148.0,67127.0,0.91764539]
[1772972019093,0.00152,67147.0,67125.0,0.0004]
[1772972019294,0.03684727,67146.0,67127.0,0.91764539]
[1772972019491,0.07446238,67148.0,67127.0,0.91764539]
[1772972019840,0.07598238,67150.0,67128.0,0.27910122]
[1772972020386,0.07598238,67150.0,67130.0,0.27910122]
[1772972020588,0.00152,67149.0,67132.0,0.27910122]
[1772972020787,0.07445683,67153.0,67134.0,0.27910122]
[1772972021024,0.00152,67152.0,67134.0,0.27910122]
[1772972021173,0.00011964,67154.0,67136.0,0.27910122]
[1772972021377,0.00011964,67154.0,67138.0,0.27910122]
[1772972021800,0.00011964,67154.0,67136.0,0.9]
[1772972021801,0.07457567,67154.0,67139.0,0.00152]
[1772972022006,0.00011964,67154.0,67140.0,0.27910122]
[1772972022410,0.00011964,67154.0,67142.0,0.27910122]
[1772972022610,0.00011964,67154.0,67143.0,0.00152]
[1772972022866,0.00011964,67154.0,67141.0,0.91764539]
[1772972023045,0.00011964,67154.0,67144.0,0.00152]
[1772972023247,0.00011964,67154.0,67136.0,0.07447543]
[1772972023248,0.03684727,67152.0,67129.0,0.07448245]
[1772972023450,0.03684727,67150.0,67138.0,0.0002]
[1772972023654,0.03684727,67150.0,67129.0,0.01916539]
[1772972023819,0.03684727,67150.0,67131.0,0.0002]
[1772972024376,0.07446127,67149.0,67132.0,0.01764539]
[1772972024504,0.03684727,67148.0,67132.0,0.01764539]
[1772972024705,0.671745,67145.0,67125.0,0.0004]
[1772972024926,1.224406,67143.0,67125.0,9.177e-05]
[1772972025166,0.03684727,67140.0,67125.0,9.177e-05]
[1772972025317,0.03684727,67136.0,67125.0,9.177e-05]
[1772972025513,0.03684727,67134.0,67125.0,9.177e-05]
[1772972025714,0.03684727,67134.0,67106.0,0.08025884]
[1772972025715,0.03669727,67132.0,67106.0,0.00575]
[1772972025947,0.03684727,67130.0,67107.0,0.00152]
[1772972026170,0.03684727,67128.0,67107.0,0.8789189]
[1772972026321,0.07448789,67125.0,67107.0,0.8789189]
[1772972026522,0.03684727,67124.0,67107.0,0.8789189]
[1772972026742,0.03684727,67124.0,67106.0,0.00575]
[1772972026948,0.03684727,67122.0,67106.0,1e-08]
[1772972027146,0.03684727,67119.0,67100.0,3.11376934]
[1772972027350,0.03684727,67117.0,67100.0,3.07854625]
[1772972027546,2.309968,67114.0,67100.0,3.07854625]
[1772972027820,0.03684727,67111.0,67100.0,3.07854625]
[1772972028011,0.11757,67108.0,67100.0,3.07854625]
[1772972028221,0.133137,67105.0,67100.0,3.07854625]
[1772972028518,0.03684727,67102.0,67100.0,3.07854625]
[1772972028675,0.03684727,67102.0,67079.0,0.00575]
[1772972028676,1.304149,67068.0,67062.0,0.07503782]
[1772972028871,0.0004,67100.0,67062.0,0.0004807]
[1772972028872,0.2718287,67081.0,67062.0,0.0004807]
[1772972029092,0.2718287,67079.0,67062.0,0.0004807]
[1772972029288,0.2718287,67077.0,67062.0,0.0004807]
[1772972029693,0.03684727,67073.0,67054.0,0.0024446]
[1772972029895,0.32997487,67076.0,67052.0,0.00575]
[1772972029896,0.03684727,67071.0,67052.0,0.00575]
[1772972030091,0.849889,67068.0,67043.0,0.0003]
[1772972030295,0.00152,67072.0,67043.0,0.0003]
[1772972030296,0.03684727,67063.0,67043.0,0.0003]
[1772972030499,0.03684727,67063.0,67025.0,0.00615]
[1772972030500,0.03684727,67059.0,67025.0,0.00365]
[1772972030836,0.03684727,67059.0,67008.0,0.21377766]
[1772972030837,0.03684727,67043.0,67000.0,0.93402902]
[1772972031026,0.32997487,67048.0,66974.0,0.07465543]
[1772972031027,0.05983349,67016.0,66974.0,0.07465543]
[1772972031177,0.696336,67013.0,66961.0,0.01674384]
[1772972031371,0.13692,67024.0,66961.0,0.01674384]
[1772972031372,0.2718287,67010.0,66975.0,0.07505385]
[1772972031574,0.03684727,67014.0,66975.0,0.07505385]
[1772972031575,0.03684727,67014.0,66976.0,0.27851071]
[1772972031826,0.2718287,67020.0,66979.0,0.03583035]
[1772972031980,0.2718287,67020.0,66975.0,0.07505385]
[1772972031981,1.25093027,67019.0,66980.0,0.00152]
[1772972032335,0.00011924,67020.0,66980.0,0.00152]
[1772972032336,0.00163924,67020.0,66985.0,0.27851071]
[1772972032524,0.00011924,67020.0,66986.0,0.11047281]
[1772972032725,0.00011924,67020.0,66991.0,0.27851071]
[1772972032993,0.00163924,67020.0,66994.0,0.03583035]
[1772972033196,0.2718287,67033.0,66994.0,0.03583035]
[1772972033197,0.00152,67046.0,67001.0,0.03583035]
[1772972033485,0.00152,67046.0,67007.0,0.31434106]
[1772972033486,0.0016397,67046.0,67007.0,0.31434106]
[1772972033656,0.00148,67045.0,67009.0,0.27851071]
[1772972033862,0.0001197,67046.0,67014.0,0.27851071]
[1772972034042,0.0001197,67046.0,67002.0,0.1382]
[1772972034043,0.0001197,67046.0,67019.0,0.27851071]
[1772972034379,0.0001197,67046.0,67020.0,0.28003071]
[1772972034685,0.0001197,67046.0,67022.0,0.27851071]
[1772972034916,0.0001197,67046.0,67021.0,0.07460348]
[1772972034917,0.0001197,67046.0,67025.0,0.03583035]
[1772972035087,0.0012,67050.0,67027.0,0.03583035]
[1772972035237,0.00575,67052.0,67027.0,0.03583035]
[1772972035238,1e-08,67052.0,67028.0,0.00152]
[1772972035432,1e-08,67052.0,67032.0,0.27851071]
[1772972035639,0.2718287,67085.0,67036.0,0.27851071]
[1772972035834,0.07453535,67083.0,67042.0,0.148324]
[1772972036060,0.2396227,67097.0,67033.0,0.13952]
[1772972036061,0.07451404,67102.0,67051.0,0.27851071]
[1772972036260,0.36682214,67110.0,67057.0,0.16117435]
[1772972036261,0.07571589,67100.0,67057.0,0.16117435]
[1772972036474,0.07450277,67112.0,67053.0,0.26664889]
[1772972036475,1e-08,67106.0,67077.0,0.07454119]
[1772972036691,0.00144,67105.0,67078.0,0.00152]
[1772972037305,0.00011979,67105.0,67078.0,0.00152]
[1772972037514,0.07448514,67128.0,67083.0,0.27851071]
[1772972037713,0.00575,67133.0,67083.0,0.27851071]
[1772972037714,0.07488878,67125.0,67085.0,0.31434106]
[1772972037934,0.07488878,67125.0,67087.0,0.27851071]
[1772972038133,0.00144,67124.0,67090.0,0.03583035]
[1772972038342,0.00144,67123.0,67092.0,0.31434106]
[1772972038535,0.0004,67125.0,67094.0,0.27851071]
[1772972038713,0.0004,67125.0,67097.0,0.03583035]
[1772972038943,0.00575,67133.0,67100.0,0.27851071]
[1772972039165,0.00575,67133.0,67104.0,0.27851071]
[1772972039347,0.00575,67133.0,67105.0,0.28003071]
[1772972039689,0.00575,67133.0,67106.0,0.03583035]
[1772972039843,0.00575,67133.0,67107.0,0.27851071]
[1772972040047,0.00575,67133.0,67109.0,0.31434106]
[1772972040246,0.00586968,67133.0,67106.0,0.27851071]
[1772972040463,0.07448012,67132.0,67105.0,0.001]
[1772972040671,0.07448012,67132.0,67107.0,0.00152]
[1772972041048,0.00586968,67133.0,67108.0,0.27851071]
[1772972041247,1e-08,67133.0,67108.0,0.27851071]
[1772972041487,1e-08,67133.0,67110.0,0.27851071]
[1772972041667,1e-08,67133.0,67109.0,0.03735035]
[1772972041668,1e-08,67133.0,67109.0,0.00152]
[1772972041863,1e-08,67133.0,67106.0,0.08025898]
[1772972042068,1e-08,67133.0,67098.0,0.03583035]
[1772972042069,0.2718287,67132.0,67085.0,0.13592972]
[1772972042267,0.2718287,67132.0,67055.0,0.22141348]
[1772972042268,0.0004,67075.0,67038.0,0.27851071]
[1772972042474,0.0004,67075.0,67041.0,0.07458122]
[1772972042475,0.07454564,67073.0,67041.0,0.07458122]
[1772972042670,0.0004,67075.0,67043.0,0.03583035]
[1772972042891,0.0004,67075.0,67046.0,0.17734679]
[1772972043315,0.00148,67077.0,67052.0,0.00575]
[1772972043620,0.00148,67076.0,67052.0,0.0061485]
[1772972043820,0.00148,67075.0,67052.0,0.0061485]
[1772972043977,0.00148,67074.0,67052.0,0.0061485]
[1772972044209,0.25972952,67072.0,67052.0,0.0061485]
[1772972044354,0.00148,67071.0,67052.0,0.0061485]
[1772972044551,0.25972952,67072.0,67031.0,0.07459154]
[1772972044552,0.03427194,67070.0,67031.0,0.07459154]
[1772972044856,0.00148,67069.0,67032.0,0.15811657]
[1772972045406,0.03279194,67068.0,67032.0,0.15811657]
[1772972045625,0.128118,67067.0,67032.0,0.15811657]
[1772972045781,0.126582,67066.0,67032.0,0.15811657]
[1772972045985,0.03279194,67065.0,67013.0,0.07461223]
[1772972046171,0.03279194,67061.0,67024.0,0.15811657]
[1772972046370,2.444594,67058.0,67024.0,0.15811657]
[1772972046618,0.03279194,67054.0,67024.0,0.15811657]
[1772972046822,0.03279194,67053.0,67024.0,0.15811657]
[1772972047051,0.03279194,67049.0,67025.0,1e-08]
[1772972047275,2.444594,67046.0,67025.0,1e-08]
[1772972047525,0.07456565,67056.0,67026.0,0.07459791]
[1772972047728,0.25972952,67052.0,67040.0,2.444594]
[1772972047989,0.25972952,67052.0,67041.0,0.15811657]
[1772972048157,0.26012756,67052.0,67041.0,0.15811657]
[1772972048358,0.26012756,67052.0,67028.0,0.15811657]
[1772972048359,0.26164756,67052.0,67028.0,0.15811657]
[1772972048577,0.0745701,67051.0,67028.0,0.15811657]
[1772972048855,0.0760901,67051.0,67028.0,0.15811657]
[1772972049258,0.001,67046.0,67028.0,0.15811657]
[1772972049681,0.001,67046.0,67032.0,0.0002]
[1772972049871,0.0755701,67051.0,67032.0,0.0002]
[1772972049872,0.001,67051.0,67033.0,0.15811657]
[1772972050037,0.33454655,67052.0,67033.0,0.15811657]
[1772972050362,0.001,67046.0,67033.0,0.15811657]
[1772972050564,0.07457677,67045.0,67033.0,0.15811657]
[1772972051342,0.07557571,67046.0,67033.0,0.15811657]
[1772972051562,0.0745701,67051.0,67034.0,0.15811657]
[1772972051804,0.07496814,67052.0,67034.0,0.15811657]
[1772972052010,0.00039804,67052.0,67034.0,0.15811657]
[1772972052345,0.07496733,67052.0,67035.0,0.00152]
[1772972052653,0.001,67045.0,67037.0,0.07458567]
[1772972052859,0.001,67045.0,67038.0,0.15811657]
[1772972053054,0.25957952,67051.0,67038.0,0.15811657]
[1772972053257,0.25957952,67051.0,67032.0,0.07479063]
[1772972053258,0.00152,67050.0,67021.0,0.15811657]
[1772972053499,0.338598,67049.0,67021.0,0.15811657]
[1772972053699,0.534454,67047.0,67021.0,0.15811657]
[1772972053892,0.25428,67045.0,67021.0,0.15811657]
[1772972054381,0.03645648,67042.0,67003.0,0.15811657]
[1772972054556,0.224259,67040.0,67003.0,0.15811657]
[1772972054751,0.07610345,67039.0,67005.0,0.15811657]
[1772972054952,0.03645648,67035.0,67005.0,0.15811657]
[1772972055178,0.742135,67034.0,67005.0,0.15811657]
[1772972055379,0.07610345,67039.0,67005.0,0.15811657]
[1772972055380,0.07458345,67039.0,67005.0,0.15811657]
[1772972055547,0.00152,67038.0,67005.0,0.15811657]
[1772972055754,0.365642,67037.0,67005.0,0.15811657]
[1772972055970,0.247481,67037.0,67005.0,0.15811657]
[1772972056375,0.761873,67035.0,67005.0,0.15963657]
[1772972056610,0.413341,67036.0,67005.0,0.15963657]
[1772972056784,0.0745879,67035.0,67006.0,0.07462018]
[1772972056987,0.00152,67034.0,67007.0,0.15811657]
[1772972057309,0.00152,67033.0,67007.0,0.15811657]
[1772972057536,0.0745879,67035.0,67007.0,0.15811657]
[1772972057697,0.00152,67034.0,67007.0,0.15811657]
[1772972057883,0.00152,67034.0,67007.0,0.15733857]
[1772972058279,0.00152,67033.0,67007.0,0.15733857]
[1772972058980,0.03645648,67037.0,67009.0,0.15811657]
[1772972059330,0.00152,67036.0,67009.0,0.15811657]
[1772972059987,0.00152,67041.0,67009.0,0.15811657]
[1772972060186,0.001,67037.0,67009.0,0.15811657]
[1772972060392,0.001,67037.0,67011.0,0.15811657]
[1772972061508,0.07458233,67040.0,67012.0,0.15811657]
[1772972061735,0.001,67036.0,67012.0,0.15811657]
[1772972062133,0.07458233,67040.0,67012.0,0.15811657]
[1772972062338,0.001,67037.0,67012.0,0.15811657]
[1772972062488,0.00156,67038.0,67012.0,0.15811657]
[1772972062895,0.07458233,67040.0,67012.0,0.15811657]
[1772972063202,0.07458233,67040.0,67014.0,0.15811657]
[1772972063547,0.07458233,67042.0,67016.0,0.15811657]
[1772972064049,0.07458233,67042.0,67018.0,0.15811657]
[1772972064972,0.07458233,67042.0,67018.0,0.15111457]
[1772972065773,0.07458233,67043.0,67020.0,0.15811657]
[1772972066631,0.001,67042.0,67020.0,0.15811657]
[1772972066821,7.001e-05,67040.0,67020.0,0.15811657]
[1772972067039,7.001e-05,67040.0,67021.0,0.00156]
[1772972067296,7.001e-05,67040.0,67022.0,0.15811657]
[1772972068062,7.001e-05,67040.0,67023.0,0.07460125]
[1772972068266,7.001e-05,67040.0,67000.0,0.0012]
[1772972068470,7.001e-05,67040.0,67009.0,0.15811657]
[1772972068471,1.088476,67036.0,67009.0,0.15811657]
[1772972068784,0.03645648,67033.0,67009.0,0.15811657]
[1772972068962,0.00156,67032.0,67009.0,0.15811657]
[1772972069157,0.00156,67031.0,67009.0,0.15811657]
[1772972070384,0.07459346,67030.0,67009.0,0.15811657]
[1772972070812,0.07458456,67038.0,67010.0,0.15811657]
[1772972071008,0.07458456,67038.0,67011.0,0.0104575]
[1772972071220,0.07458456,67038.0,67012.0,0.16857407]
[1772972071423,0.07458456,67038.0,67010.0,0.00039779]
[1772972071424,0.07458456,67038.0,67014.0,0.15811657]
[1772972071649,0.07465457,67040.0,67016.0,0.15811657]
[1772972071853,0.07465261,67040.0,67017.0,0.0104575]
[1772972072159,0.00196,67050.0,67020.0,0.19176918]
[1772972072160,0.07457492,67047.0,67020.0,0.19176918]
[1772972072365,0.07457492,67047.0,67022.0,0.07460236]
[1772972072533,0.07457455,67048.0,67023.0,0.16857407]
[1772972072852,0.07457455,67048.0,67025.0,0.09201421]
[1772972073002,0.07457455,67048.0,67022.0,0.07460236]
[1772972073003,0.07457455,67048.0,67027.0,0.09201421]
[1772972073209,0.07457455,67048.0,67022.0,0.07460236]
[1772972073210,0.07457455,67048.0,67029.0,0.09201421]
[1772972073427,0.07457455,67048.0,67031.0,0.09201421]
[1772972073631,0.07457455,67048.0,67033.0,0.09201421]
[1772972073834,0.07457455,67048.0,67035.0,0.09201421]
[1772972074052,0.07457455,67048.0,67037.0,0.09201421]
[1772972074258,0.07457455,67048.0,67039.0,0.09201421]
[1772972074453,0.07457455,67048.0,67041.0,0.09201421]
[1772972074686,0.07457455,67048.0,67029.0,0.07459457]
[1772972074954,0.07457455,67048.0,67031.0,0.07361137]
[1772972075355,0.07457455,67048.0,67033.0,0.07361137]
[1772972076144,0.07479456,67048.0,67033.0,0.07361137]
[1772972076545,0.07479456,67048.0,67034.0,0.07458901]
[1772972076753,0.07479456,67048.0,67035.0,0.07361137]
[1772972078366,0.07579456,67048.0,67035.0,0.07361137]
[1772972078566,0.07479456,67048.0,67036.0,0.07458678]
[1772972078768,0.07479456,67048.0,67037.0,0.07361137]
[1772972078975,0.07579456,67048.0,67039.0,0.07361137]
[1772972079151,0.07479456,67048.0,67039.0,0.07361137]
[1772972079489,0.07579456,67048.0,67039.0,0.07361137]
[1772972079845,0.07479456,67048.0,67039.0,0.07361137]
[1772972081050,0.07579456,67048.0,67039.0,0.07361137]
[1772972082416,0.07479456,67048.0,67039.0,0.07361137]
[1772972082642,0.07579456,67048.0,67040.0,0.07361137]
[1772972082810,0.07679456,67048.0,67040.0,0.07361137]
[1772972082973,0.07579456,67048.0,67040.0,0.07361137]
[1772972083396,0.07579456,67048.0,67041.0,0.07361137]
[1772972083794,0.07457313,67049.0,67041.0,0.07361137]
[1772972083795,0.0745733,67049.0,67041.0,0.07361137]
[1772972084206,0.001,67048.0,67041.0,0.07361137]
[1772972084419,0.0745733,67049.0,67041.0,0.07361137]
[1772972084821,0.001,67048.0,67041.0,0.07361137]
[1772972085027,0.07457434,67050.0,67042.0,0.07458011]
[1772972085331,0.00122001,67048.0,67043.0,0.07361137]
[1772972085509,0.07442434,67050.0,67045.0,0.07336737]
[1772972085709,0.0745701,67051.0,67045.0,0.07336737]
[1772972085884,0.001,67048.0,67045.0,0.07336737]
[1772972086284,0.00575,67052.0,67044.0,0.00156]
[1772972086504,0.00575,67052.0,67039.0,0.07458011]
[1772972086505,0.01677908,67051.0,67038.0,0.05869389]
[1772972087107,0.07570337,67049.0,67039.0,0.05869389]
[1772972087307,0.001,67048.0,67040.0,0.00156]
[1772972087507,0.00575,67052.0,67040.0,0.00156]
[1772972087508,0.03785169,67060.0,67041.0,0.05849389]
[1772972087744,0.07456241,67058.0,67041.0,0.05849389]
[1772972087949,0.07456241,67058.0,67040.0,0.00156]
[1772972088114,0.07478593,67055.0,67041.0,0.05849389]
[1772972088309,0.00022001,67055.0,67041.0,0.05849389]
[1772972088504,0.07478611,67055.0,67041.0,0.05849389]
[1772972088710,0.03785169,67054.0,67037.0,0.7]
[1772972088910,0.03785169,67054.0,67034.0,0.04679511]
[1772972089111,0.03785169,67054.0,67034.0,0.04835511]
[1772972089112,0.03785169,67052.0,67034.0,0.04835511]
[1772972089315,0.03785169,67050.0,67035.0,0.04679511]
[1772972091174,0.03785169,67048.0,67035.0,0.0745872]
[1772972091376,0.03785169,67048.0,67036.0,0.04679511]
[1772972091554,0.00156,67047.0,67036.0,0.04679511]
[1772972091756,0.03941169,67047.0,67036.0,0.04679511]
[1772972092579,0.03941169,67047.0,67034.0,0.04835511]
[1772972092762,0.03941169,67047.0,67035.0,0.04679511]
[1772972092968,0.03785169,67047.0,67035.0,0.04679511]
[1772972093222,0.07457566,67046.0,67037.0,0.04679511]
[1772972093548,0.03785169,67045.0,67037.0,0.04679511]
[1772972095410,0.03785169,67044.0,67038.0,0.04679511]
[1772972096191,0.07479127,67050.0,67038.0,0.04679511]
[1772972096395,0.07479174,67050.0,67038.0,0.04679511]
[1772972096600,0.03785169,67049.0,67038.0,0.04679511]
[1772972097427,0.07457343,67048.0,67040.0,0.04679511]
[1772972097622,0.03785169,67049.0,67042.0,0.04679511]
[1772972097938,0.11242434,67049.0,67042.0,0.04679511]
[1772972099027,0.61242434,67049.0,67042.0,0.04679511]
[1772972099210,0.57457265,67049.0,67042.0,0.04679511]